Cogmind - Beta 13 @@@ ROGUE MODE // 2024.04.14 @ 20:35:59 Player: Nebula avali Result: Destroyed by G-34 Mercenary with Small Laser Performance ------------- Evolutions (0) 0 Regions Visited (4) 800 Robots Destroyed (35) 175 Value Destroyed (507) 507 Prototype IDs (1) 20 Alien Tech Used (0) 0 Bonus (300) 300 TOTAL SCORE: 1802 Bonus ------- Aligned with FarCom 300 Cogmind --------- Core Integrity 0/250 Matter 228/300 Energy 100/100 System Corruption 2% Temperature Cool (6) Movement Rolling (140) Ox4 Location -9/Mines Parts ------- > --- POWER (1) -------- (None) > --- PROPULSION (2) --- Flexi-carbon Leg Wheel > --- UTILITY (2) ------ High-capacity Storage Unit > --- WEAPON (2) ------- Heavy Hammer > --- INVENTORY (20) --- Nuclear Core Nuclear Core Reinforced Deuterium Engine Fission Core Wheel Wheel Wheel Combat Airjet High-capacity Matter Pod (200) Armor Integrity Analyzer Phase Shifter Utility Shielding Heavy Assault Rifle Heavy Assault Rifle Rocket Launcher Heavy Hammer Peak State ------------ > --- POWER ------------ Ion Engine > --- PROPULSION ------- Aluminum Leg Flexi-carbon Leg > --- UTILITY ---------- High-capacity Storage Unit Skeleton Box > --- WEAPON ----------- Bore Cannon Heavy Hammer > --- INVENTORY -------- Nuclear Core Nuclear Core Reinforced Deuterium Engine Fission Core High-capacity Matter Pod Armor Integrity Analyzer Phase Shifter Utility Shielding Heavy Assault Rifle Heavy Assault Rifle Rocket Launcher Heavy Hammer [Rating: 24] Favorites ----------- Power Ion Engine Engine Ion Engine Propulsion Wheel Treads Light Treads Leg Aluminum Leg Wheel Wheel Utility Signal Interpreter Device Skeleton Box Storage Small Storage Unit Processor Signal Interpreter Weapon Heavy Assault Rifle Energy Gun Small Laser Ballistic Gun Heavy Assault Rifle Ballistic Cannon Bore Cannon Impact Weapon Heavy Hammer Build | -11 -10 -10 -10 -9 ------- Run | Yrd Mat Min Exi Min Slots Evolved . | . . . . . Power . | . . . . . Propulsion . | . . . . . Utility . | . . . . . Weapon . | . . . . . Parts Attached 30 | 2 12 6 5 5 Power 6 | . 3 2 1 . Engine 6 | . 3 2 1 . Core . | . . . . . Reactor . | . . . . . Propulsion 12 | 2 2 3 1 4 Treads 4 | 2 2 . . . Leg 3 | . . . . 3 Wheel 5 | . . 3 1 1 Hover . | . . . . . Flight . | . . . . . Utility 4 | . 2 . 2 . Device 2 | . 1 . 1 . Storage 1 | . . . 1 . Processor 1 | . 1 . . . Hackware . | . . . . . Protection . | . . . . . Artifact . | . . . . . Weapon 8 | . 5 1 1 1 Energy Gun . | . . . . . Energy Cannon . | . . . . . Ballistic Gun 6 | . 5 . 1 . Ballistic Cannon 1 | . . . . 1 Launcher . | . . . . . Special Weapon . | . . . . . Impact Weapon 1 | . . 1 . . Slashing Weapon . | . . . . . Piercing Weapon . | . . . . . Special Melee Weapon . | . . . . . Unidentified Prototypes 1 | . . . 1 . Parts Lost 5 | . 1 . . 4 Power 2 | . 1 . . 1 Propulsion 1 | . . . . 1 Utility 1 | . . . . 1 Weapon 1 | . . . . 1 Highest Loss Streak 3 | . 1 . . 3 To Critical Strikes . | . . . . . Average Slot Usage (%) 94 | . 97 99 93 84 Engine 13 | . 13 14 14 13 Treads 10 | . 28 3 . . Leg 3 | . . . . 22 Wheel 13 | . . 24 28 4 Device 2 | . 2 . 1 11 Storage 14 | . 14 14 14 14 Processor 9 | . 9 14 12 . Ballistic Gun 17 | . 27 22 7 . Impact Weapon 6 | . . 5 14 14 Naked Turns . | . . . . . Heaviest Build 59 | 10 14 14 51 59 Greatest Support 40 | 40 40 40 20 30 Greatest Overweight (x) 5 | . . 1 2 5 Average Overweight (x) . | . . . 1 1 Largest Inventory Capacity 20 | 8 8 8 20 20 Average Capacity 11 | 8 8 8 15 20 Most Carried 17 | 7 8 8 9 17 Average Carried 8 | 6 7 7 8 13 Final Capacity 20 | 8 8 8 20 20 Final Carried 16 | 6 8 8 9 16 Class Distribution -------------------- 96% | Mutant 3% | Scavenger-Mutant Dominant Class ---------------- Mutant | -10/Materials Mutant | -10/Mines Mutant | -10/Exiles Mutant | -9/Mines Resources | -11 -10 -10 -10 -9 ----------- Run | Yrd Mat Min Exi Min Matter Collected 1097 | 216 602 128 43 108 Remotely . | . . . . . Salvage Created 1035 | . 562 252 . 221 Parts 58 | . 41 14 . 3 Haulers Intercepted 1 | . 1 . . . Recyclers Shooed 2 | . 2 . . . Parts Field Recycled . | . . . . . Retrieved Matter . | . . . . . Parts Self-Destructed . | . . . . . Prevented . | . . . . . Kills | -11 -10 -10 -10 -9 ------- Run | Yrd Mat Min Exi Min Combat Hostiles Destroyed 24 | . 13 6 . 5 Melee 4 | . . 2 . 2 Guns 15 | . 13 2 . . Cannons 2 | . . . . 2 AOE 1 | . . 1 . . Classes Destroyed 8 | . 6 1 . 1 Worker 4 | . 2 2 . . Tunneler 2 | . . 2 . . Hauler 1 | . 1 . . . Recycler 3 | . 1 1 . 1 Watcher 3 | . 3 . . . Swarmer 15 | . 9 6 . . Grunt 7 | . 4 . . 3 Assembled 2 | . . . . 2 Best Kill Streak 4 | . 4 3 . 3 Combat Bots Only 3 | . 3 3 . 2 Max Kills in Single Turn 1 | . 1 1 . 1 Gunslinging . | . . . . . Exploded 1 | . . 1 . . Melee 1 | . . 1 . 1 Uniques/NPCs Destroyed . | . . . . . Combat | -11 -10 -10 -10 -9 -------- Run | Yrd Mat Min Exi Min Hostile Shots Fired 194 | . 92 18 . 84 Missed 58 | . 26 6 . 26 Damage Taken 1388 | . 611 108 . 669 Core 251 | . 83 14 . 154 Absorbed by Shields . | . . . . . Core Remaining (%) 100 | 100 . . . . Volleys Fired 104 | . 81 7 1 15 Largest 2 | . 2 2 1 1 Hottest 57 | . 46 46 23 57 Shots Fired 192 | . 161 15 1 15 Gun 177 | . 161 15 1 . Cannon 15 | . . . . 15 Launcher . | . . . . . Special . | . . . . . Kinetic 192 | . 161 15 1 15 Thermal . | . . . . . Explosive . | . . . . . Electromagnetic . | . . . . . Robot Hit Streak 7 | . 7 5 . 1 Robot Miss Streak 5 | . 5 1 . 4 Penetration Max . | . . . . . Secondary Targets 3 | . 3 . . . Max Gunslinging Chain 1 | . 1 . . . Shots Hit Robots 116 | . 91 15 . 10 Core Hits 43 | . 35 5 . 3 Critical Kills 2 | . . . . 2 Critical Parts Destroyed 7 | . 1 4 . 2 Critical Strikes 9 | . 1 4 . 4 Destroy 4 | . 1 . . 3 Smash 5 | . . 4 . 1 Melee Attacks 27 | . . 17 . 10 Impact 27 | . . 17 . 10 Slashing . | . . . . . Piercing . | . . . . . Sneak Attacks 4 | . . 2 . 2 Combat Hostiles . | . . . . . Follow-up Attacks . | . . . . . Damage Inflicted 1684 | . 866 478 . 340 Guns 1002 | . 864 138 . . Cannons 84 | . . . . 84 Explosions 55 | . . 55 . . Melee 541 | . . 285 . 256 Ramming 2 | . 2 . . . Kinetic 1086 | . 864 138 . 84 Thermal 55 | . . 55 . . Explosive . | . . . . . Electromagnetic . | . . . . . Impact 541 | . . 285 . 256 Slashing . | . . . . . Piercing . | . . . . . Highest Corruption 2 | . 2 2 2 2 Average Corruption 2 | . 2 2 2 2 Corruption Purged . | . . . . . Corruption Blocked . | . . . . . Effects 54 | . 17 16 13 8 Message Errors 11 | . 3 5 2 1 Matter Fused 12 | . 6 2 2 2 Heat Flow Errors 6 | . 2 2 2 . Energy Discharges 7 | . . 3 3 1 Parts Rejected 1 | . . . . 1 Parts Fused 1 | . . . . 1 Data Loss (minor) 10 | . 2 3 3 2 Data Loss (major) 1 | . 1 . . . Misfires 1 | . . 1 . . Alerts 3 | . 2 . 1 . Weapon Failures 1 | . 1 . . . Overload Shots . | . . . . . Overflow Damage 382 | . . 292 . 90 Projectiles . | . . . . . Explosions 47 | . . 47 . . Melee 335 | . . 245 . 90 Knockbacks 4 | . . 2 . 2 Impact 2 | . . 2 . . Kinetic 2 | . . . . 2 Secondary . | . . . . . Self-Inflicted Damage 18 | . . 18 . . Shots 1 | . . 1 . . Rammed 2 | . 2 . . . Targets Rammed 2 | . 2 . . . Kicked . | . . . . . Crushed . | . . . . . Highest Temperature 272 | . 272 148 246 247 Average Temperature 94 | . 87 60 108 105 Received Heat Transfer 583 | . 162 . . 421 Effects 1 | . 1 . . . Energy Bleed 1 | . 1 . . . Siege Activations . | . . . . . Robots Corrupted . | . . . . . Combat Hostiles . | . . . . . Parts Fried 8 | . . 5 . 3 Impact Corruptions 11 | . . 7 . 4 Robots Melted . | . . . . . Combat Hostiles . | . . . . . Parts Melted . | . . . . . Heat Transferred 50 | . . 50 . . Parts Sabotaged . | . . . . . Parts Stolen . | . . . . . Parts Stripped . | . . . . . Power Chain Reactions . | . . . . . Alert | -11 -10 -10 -10 -9 ------- Run | Yrd Mat Min Exi Min Peak Influence 185 | . 185 181 . 50 Initial 58 | . . 58 . . Average 65 | . 67 93 . 15 Maximum Alert Level . | . . . . . Low Security (%) 100 | 100 100 100 . 100 Level 1 . | . . . . . Level 2 . | . . . . . Level 3 . | . . . . . Level 4 . | . . . . . Level 5 . | . . . . . High Security . | . . . . . Max Security . | . . . . . Squads Dispatched 3 | . 2 . . 1 Investigation 1 | . 1 . . . Extermination . | . . . . . Reinforcement 2 | . 1 . . 1 Assault . | . . . . . Garrison . | . . . . . Intercept . | . . . . . Searches Triggered . | . . . . . Construction Impeded 1 | . . . . 1 Haulers Reinforced . | . . . . . Active Scanning Responses . | . . . . . Cargo Convoy Interrupts . | . . . . . Stealth | -11 -10 -10 -10 -9 --------- Run | Yrd Mat Min Exi Min Distress Signals . | . . . . . Communications Jammed . | . . . . . Distress Signals . | . . . . . Times Spotted 38 | . 22 8 . 8 Peak Tracking Total 3 | . 3 3 . 3 Tactical Retreats 3 | . . 1 . 2 Traps | -11 -10 -10 -10 -9 ------- Run | Yrd Mat Min Exi Min Traps Triggered 1 | . 1 . . . Indirectly . | . . . . . Trap Hack Attempts . | . . . . . Triggered . | . . . . . Disarmed . | . . . . . Reprogrammed 2 | . 2 . . . Reused 1 | . 1 . . . Traps Extracted . | . . . . . Installed . | . . . . . Triggered 1 | . 1 . . . Machines | -11 -10 -10 -10 -9 ---------- Run | Yrd Mat Min Exi Min Machines Disabled 2 | . . 2 . . Max in Single Turn 2 | . . 2 . . Machines Repaired . | . . . . . Machines Dismantled . | . . . . . Machines Sabotaged . | . . . . . Overloaded Fab Kills . | . . . . . Hacking | -11 -10 -10 -10 -9 --------- Run | Yrd Mat Min Exi Min Machines Accessed 10 | . 6 . 4 . Terminals 6 | . 6 . . . Fabricators . | . . . . . Repair Stations . | . . . . . Recycling Units . | . . . . . Scanalyzers . | . . . . . Garrison Access . | . . . . . Total Hacks 72 | . 23 . 49 . Successful 62 | . 13 . 49 . Failed 10 | . 10 . . . Catastrophic 3 | . 3 . . . Database Lockouts . | . . . . . Manual 28 | . 22 . 6 . Terminals 23 | . 23 . . . Fabricators . | . . . . . Repair Stations . | . . . . . Recycling Units . | . . . . . Scanalyzers . | . . . . . Garrison Access . | . . . . . Terminal Hacks 50 | . 1 . 49 . Record 49 | . . . 49 . Reprogram Traps 1 | . 1 . . . Fabricator Hacks . | . . . . . Repair Station Hacks . | . . . . . Recycling Unit Hacks . | . . . . . Scanalyzer . | . . . . . Garrison Access Hacks . | . . . . . Unauthorized Hacks 12 | . 12 . . . Terminals 12 | . 12 . . . Track 3 | . 3 . . . Assimilate 4 | . 4 . . . Botnet 4 | . 4 . . . Disrupt 1 | . 1 . . . Fabricators . | . . . . . Repair Stations . | . . . . . Recycling Units . | . . . . . Scanalyzers . | . . . . . Garrison Access . | . . . . . Data Cores Recovered . | . . . . . Used . | . . . . . Hacking Detections 5 | . 5 . . . Full Trace Events . | . . . . . Feedback Events . | . . . . . Feedback Blocked . | . . . . . Robot Schematics Acquired . | . . . . . Robots Built . | . . . . . Authchips . | . . . . . Time . | . . . . . Total Robot Build Rating . | . . . . . Part Schematics Acquired . | . . . . . Parts Built . | . . . . . Authchips . | . . . . . Time . | . . . . . Total Part Build Rating . | . . . . . Parts Repaired . | . . . . . Time . | . . . . . Parts Recycled . | . . . . . Recycled Matter . | . . . . . Retrieved Matter . | . . . . . Retrieved Components . | . . . . . Parts Scanalyzed . | . . . . . Part Schematics Acquired . | . . . . . Parts Damaged . | . . . . . Bothacking | -11 -10 -10 -10 -9 ------------ Run | Yrd Mat Min Exi Min Used RIF Installer . | . . . . . Robots Hacked . | . . . . . Non-combat . | . . . . . Combat . | . . . . . Robot Hacks Applied . | . . . . . Relay Couplers Released . | . . . . . Fabnet Peak Effective % . | . . . . . Robots Rewired . | . . . . . Allies Hacked . | . . . . . Hacks Repelled . | . . . . . Allies | -11 -10 -10 -10 -9 -------- Run | Yrd Mat Min Exi Min Total Allies . | . . . . . Largest Group . | . . . . . Highest-Rated Group . | . . . . . Highest-Rated Ally . | . . . . . Total Orders . | . . . . . Ally Attacks . | . . . . . Total Damage . | . . . . . Kills . | . . . . . Allies Corrupted . | . . . . . Allies Melted . | . . . . . Intel | -11 -10 -10 -10 -9 ------- Run | Yrd Mat Min Exi Min Robot Analysis Total . | . . . . . Derelict Logs Recovered 2 | . . 1 . 1 Drone Launches . | . . . . . Drone Recoveries . | . . . . . Exploration | -11 -10 -10 -10 -9 ------------- Run | Yrd Mat Min Exi Min Turns Passed 3925 | 20 1399 953 985 568 Spaces Moved 2499 | 5 688 634 990 182 Core . | . . . . . Treads 753 | 5 688 60 . . Legs 128 | . . . . 128 Wheels 1618 | . . 574 990 54 Hover . | . . . . . Flight . | . . . . . Fastest Speed 80 | 160 160 80 80 110 Average Speed 117 | 160 160 87 97 169 Slowest Speed 470 | 160 160 160 110 470 Overloaded Moves . | . . . . . Propulsion Burnouts . | . . . . . Robots Hopped . | . . . . . Cave-ins Triggered . | . . . . . Exploration Rate (%) 66 | 2 94 97 92 45 Regions Visited 4 Branch Regions 3 Pre-discovered Areas 1 | . . . 1 . Known Exits Taken 2 | . 1 1 . . Unknown Exits Taken 2 | 1 . . 1 . Scrap Searched 2 | . . 2 . . Spaces Dug 3 | . . 3 . . Terrain Destroyed 30 | . . 17 . 13 Melee 3 | . . 3 . . Projectile 13 | . . . . 13 AOE 14 | . . 14 . . Terrain Rammed . | . . . . . Walls Destroyed . | . . . . . Machines Disabled . | . . . . . Actions | -11 -10 -10 -10 -9 --------- Run | Yrd Mat Min Exi Min Total 3287 | 18 860 991 1007 411 Wait 557 | 10 49 313 1 184 Move 2495 | 4 687 633 989 182 Hop . | . . . . . Pick Up 30 | . 11 5 3 11 Fast Attach 8 | . 4 2 1 1 Attach 9 | 2 1 1 1 4 Detach 7 | 2 1 . 2 2 Swap 13 | . 7 3 3 . Drop 34 | . 17 10 5 2 Fire 104 | . 81 7 1 15 Melee 27 | . . 17 . 10 Ram . | . . . . . Kick . | . . . . . Crush 2 | . 2 . . . Escape Stasis . | . . . . . Rewire 1 | . . . 1 . Trap . | . . . . . Miscellaneous . | . . . . . Route ------- -11/Scrapyard -10/Materials (discovered 5 exits: *Mat x3 / *Min / *Sub) -10/Mines (discovered 4 exits: *Mat x2 / *Exi / *Sub) -10/Exiles (discovered 2 exits: [*Min x2]) -9/Mines (discovered 1 exit: [*Mat]) History --------- Turn | Location | Event 14 | -11/Scrapyard | Discovered new exit (range 2) 21 | -11/Scrapyard | Entered Materials 317 | -10/Materials | Build established: Mutant 481 | -10/Materials | Discovered new exit (range 15) 513 | -10/Materials | Identified exit to Materials 714 | -10/Materials | Discovered exit to Materials (range 10) 1050 | -10/Materials | Discovered exit to Materials (range 13) 1242 | -10/Materials | Discovered new exit (range 8) 1253 | -10/Materials | Identified exit to Subcaves 1335 | -10/Materials | Discovered new exit (range 5) 1340 | -10/Materials | Identified exit to Mines 1420 | -10/Materials | Entered Mines 1560 | -10/Mines | Learned Materials emergency access door positions 1654 | -10/Mines | Discovered exit to Materials (range 5) 1992 | -10/Mines | Discovered exit to Subcaves (range 3) 2116 | -10/Mines | Received a Rocket Launcher from a helpful Derelict 2175 | -10/Mines | Discovered exit to Materials (range 9) 2369 | -10/Mines | Deemed a non-threat by the Exiles lab entrance 2370 | -10/Mines | Discovered new exit (range 5) 2372 | -10/Mines | Identified exit to Exiles 2373 | -10/Mines | Entered Exiles 2405 | -10/Exiles | Discovered new exit (range 14) 2420 | -10/Exiles | Met 8R-AWN 2431 | -10/Exiles | Met EX-HEX 2458 | -10/Exiles | Met EX-BIN 2548 | -10/Exiles | Met EX-DEC 2553 | -10/Exiles | Learned location of Zion (-6) 2597 | -10/Exiles | Visited The Gauntlet 2771 | -10/Exiles | Discovered new exit (range 12) 3218 | -10/Exiles | Aligned with FarCom system 3219 | -10/Exiles | Given EX-Vault access code 3246 | -10/Exiles | Opened EX-Vault 3251 | -10/Exiles | Found Prototype Device 3251 | -10/Exiles | Identified Skeleton Box 3274 | -10/Exiles | Warned to stay clear of 0b10 Research branches 3358 | -10/Exiles | Left Exiles lab with Skeleton Box 3358 | -10/Exiles | Entered Mines 3359 | -9/Mines | Assembled infested the area 3364 | -9/Mines | Assisted by a Guerilla fighting off Assembled 3488 | -9/Mines | Learned location of 1 exit from Materials 3516 | -9/Mines | Discovered new exit (range 8) 3790 | -9/Mines | Core integrity fell below 50% 3916 | -9/Mines | Core integrity fell below 20% 3926 | -9/Mines | Destroyed by G-34 Mercenary with Small Laser Last Messages --------------- 03897_ System corrupted: Component data lost. 03898_ U-05 Engineer lays Concrete. 03901_ HV Slug penetrates G-34 Mercenary. 03901_ G-34 Mercenary knocked back. 03901_ U-05 Engineer lays Concrete. 03903_ HV Slug penetrates Wall. 03904_ U-05 Engineer lays Concrete. 03907_ Bore Cannon destroyed. 03907_ U-05 Engineer lays Concrete. 03911_ Ion Engine destroyed. 03914_ U-05 Engineer builds a Wall. 03916_ Sneak attack on U-05 Engineer. 03916_ Destroyed Terrain Scan Processor. 03916_ U-05 Engineer system corrupted by crushing effect. 03916_ Aluminum Leg destroyed. 03918_ ALERT: Construction progress impeded, dispatching reinforcements to local area. 03921_ Destroyed Heat Sink. 03921_ G-34 Mercenary system corrupted by crushing effect. 03921_ G-34 Mercenary destroyed. Map ----- +----------------------------------------------------+ | ???# #?????????????## %% % ########???? | | ???# #???????# ##### % #??????????? | | #### ######??# " % ########??????????? | | # #??# ### %##"# ##?????????????????? | | # """ #?????# *########??????????????????? | | # """ #??# ### # ???????????????????????? | | # """ #??# % ##???????????????????????? | | # #??###### % ####????????????????????? | | # #?????# # % ##???????????????????? | | # #????## #% #???????????????????? | | # #????# = ##???????????????????? | | ###########???## =%! ##????????????????????? | | ????????????### %%*= ##?????????????????????? | | ????????????# =! ####??????????????????????? | | ????????????# % ! ##?????????????????????????? | | ?????? ????## !=%# #???####??????????????????? | | ???? ### =%* ##??# ###????=!??????????? | | ???? %= "##%=#%#### #??#!%!??????????? | | ???? !%% ### ! | ## !*??????????? | | ???? ## =% % *##??????????? | | ???? # % # | ! = # #??????????? | | ????? ##?## ### % #????????????? | | ????? ????# ### #?????????????? | | ?????? ##### #### %! ###?????????????? | | ??????# ## #???????????????? | | ??????# @%= #??????????????? | | ?????# ####### %g #?????????????? | | ?????# ????????## #????????????? | | ?????? ???????????### ;# #????????????? | | ????????????????????## #### #???????????? | | ?????????????????????###;##???# #??????????? | | ???????????????????????###?????# ??????????? | | ????????????????????????????????# $ ??????????? | | ?????????????????????????????????# ???????????? | | ?????????????????????????????????? ???????????? | | ?????????????????????????????????????????????????? | | ?????????????????????????????????????????????????? | | ?????????????????????????????????????????????????? | | ?????????????????????????????????????????????????? | | ?????????????????????????????????????????????????? | | ?????????????????????????????????????????????????? | | ?????????????????????????????????????????????????? | | ?????????????????????????????????????????????????? | | ?????????????????????????????????????????????????? | | ?????????????????????????????????????????????????? | | ?????????????????????????????????????????????????? | | ?????????????????????????????????????????????????? | | ?????????????????????????????????????????????????? | | ?????????????????????????????????????????????????? | | ?????????????????????????????????????????????????? | +----------------------------------------------------+ Best States ------------- Heat Dissipation 25 Energy Generation 10 Energy Capacity 250 Matter Stores 300 Matter Capacity 300 Sight Range 16 Robot Scan Range 14 Terrain Scan Density 10 Evasion (%) 44 Recoil Reduction 2 Authchip Count 1 Item Schematics ----------------- None Robot Schematics ------------------ None Fabricated ------------ Nothing Alien Tech Used ----------------- None Achievements -------------- Quantum Hacking True Hacker root@ Challenges ------------ None Game ------ Seed BiometalArmageddonDetector Manual? 0 Play Time 00:36:31 Cumulative 30.9 hours Start 2024.04.14 @ 18:18:13 End 2024.04.14 @ 20:35:59 Sessions 3 Manual Loads 0 Difficulty Rogue Special Mode None Game No. 43 Rogue 42 Adventurer 1 Explorer 0 Win Type - Total 1 Types 1/0/0/0/0/0/0/0/0 Lore% 23 Gallery% 42 Achievement% 35 Wizard Run 0 Options --------- Layout 0 ASCII 0 Keyboard 0 Movement Numpad Keybinds 0 Fullscreen 1 Font 18/SmallcapsGlow Map View 76x50 Zoom Use 0% Tactical HUD 1 Map Filters NONE Filters NONE Steam 1 RUN: e970eec7-1055-4918-a7c2-4045ec796cac